fUSD/lending_fUSD_20241021
["ID","MTS","AMOUNT","RATE_DAILY","PERIOD"]
[340609090,1729529465008,493.0,0.00025488,2]
[340609094,1729529491904,150.0,0.00033893,4]
[340609097,1729529510429,150.25,0.00033893,7]
[340609099,1729529520688,1143.311886,0.0002759,2]
[340609100,1729529520911,151.150874,0.0002759,2]
[340609101,1729529521005,1143.311886,0.00027935,2]
[340609102,1729529521199,151.150874,0.0002828,2]
[340609103,1729529521305,1143.311886,0.0002828,2]
[340609104,1729529521483,151.150874,0.0002897,2]
[340609105,1729529521614,1143.311886,0.00028625,2]
[340609106,1729529522175,86.15706479,0.0002897,2]
[340609107,1729529522200,1057.15482121,0.0002897,2]
[340609108,1729529522669,221.626409,0.0002759,2]
[340609109,1729529523380,221.626409,0.00027935,2]
[340609110,1729529523687,221.626409,0.0002828,2]
[340609111,1729529523989,221.626409,0.00028625,2]
[340609112,1729529524315,221.626409,0.0002897,2]
[340609115,1729529542010,179.78,0.000249,2]
[340609116,1729529590661,-3000.0,0.000397,2]
[340609117,1729529590681,-158.91,0.00040045,2]
[340609118,1729529590701,-157.0,0.00041096,2]
[340609119,1729529590721,-150.02,0.00041553,2]
[340609120,1729529590740,-210.51,0.00041713,2]
[340609121,1729529590761,-250.0,0.00041859,120]
[340609122,1729529590781,-896.55732684,0.000419,14]
[340609123,1729529590802,-500.0,0.00041989,120]
[340609124,1729529590822,-500.0,0.00041989,120]
[340609125,1729529590841,-500.0,0.00041989,120]
[340609126,1729529590861,-533.54021065,0.00041989,120]
[340609127,1729529590881,-500.0,0.00041989,120]
[340609128,1729529590900,-500.0,0.00041989,120]
[340609129,1729529590921,-500.0,0.00041989,120]
[340609130,1729529590941,-500.0,0.00041989,120]
[340609131,1729529591889,450.0,0.00040045,2]
[340609132,1729529591929,500.0,0.00041989,120]
[340609133,1729529591994,500.0,0.00041989,120]
[340609134,1729529592404,450.0,0.00041096,2]
[340609135,1729529592470,450.0,0.00041989,120]
[340609136,1729529592935,450.0,0.00041553,2]
[340609137,1729529593357,450.0,0.00041713,2]
[340609138,1729529615040,14303.54068593,0.00039452,30]
[340609139,1729529626038,-362.42,0.00042061,120]
[340609140,1729529626059,-500.0,0.00042138,60]
[340609141,1729529626081,-500.0,0.00042263,120]
[340609142,1729529626102,-500.0,0.00042263,120]
[340609143,1729529626122,-353.84969238,0.00042263,120]
[340609144,1729529626145,-500.0,0.00042263,120]
[340609145,1729529626166,-500.0,0.00042263,120]
[340609146,1729529626188,-646.87339207,0.00042263,120]
[340609147,1729529626211,-500.0,0.00042263,120]
[340609148,1729529626233,-3000.0,0.000425,2]
[340609149,1729529626255,-500.34615,0.00042537,120]
[340609150,1729529626276,-500.0,0.00042537,120]
[340609151,1729529626297,-500.0,0.00042537,120]
[340609152,1729529626317,-500.0,0.00042537,120]
[340609153,1729529626337,-500.0,0.00042537,120]
[340609154,1729529626358,-500.0,0.00042686,60]
[340609155,1729529626379,-150.0,0.00042755,2]
[340609156,1729529626402,-500.0,0.00042811,120]
[340609157,1729529626422,-500.0,0.00042811,120]
[340609158,1729529626442,-500.0,0.00042811,120]
[340609159,1729529626463,-500.0,0.00042811,120]
[340609160,1729529626487,-3497.970885,0.000429,2]
[340609161,1729529626507,-590.8121,0.000429,2]
[340609162,1729529626530,-300.0,0.00042962,2]
[340609163,1729529626550,-405.19345943,0.00042985,2]
[340609164,1729529626570,-384.2,0.0004299,10]
[340609165,1729529626591,-348.4002004,0.00042997,2]
[340609166,1729529626613,-632.5916318,0.00042997,2]
[340609167,1729529626634,-189.22796674,0.00042999,4]
[340609168,1729529626654,-645.0,0.00042999,4]
[340609169,1729529626675,-206.1235968,0.00042999,2]
[340609170,1729529626695,-2462.75463827,0.00042999,2]
[340609171,1729529626718,-1414.15806369,0.00043,120]
[340609172,1729529639612,-711.29,0.00042638,2]
[340609173,1729529639636,-320.16,0.0004299,10]
[340609174,1729529639658,-48968.55,0.00043,120]
[340609175,1729529648361,-229.76,0.00040045,2]
[340609176,1729529648384,-387.91,0.00042849,120]
[340609177,1729529648406,-266.8,0.0004299,10]
[340609178,1729529648429,-29115.53,0.00043,120]
[340609179,1729529711689,13537.0,0.00027962,2]
[340609180,1729529715386,1151.0,0.00027962,2]
[340609181,1729529773956,572.0,0.000232,2]
[340609182,1729529774712,544.0,0.000232,2]
[340609183,1729529963242,-167.086,0.00033893,37]
[340609184,1729529963267,-670.013,0.00033893,37]
[340609185,1729529973566,1987.05,0.0004,30]
[340609186,1729530002338,-23900.0,0.00040003,2]
[340609187,1729530002363,-174.57,0.00040003,120]
[340609188,1729530002388,-925.43,0.00040003,2]
[340609189,1729530006163,150.0,0.00027962,2]
[340609190,1729530006635,5887.0,0.00027962,2]
[340609191,1729530008172,152.0,0.0004,2]
[340609192,1729530008420,1500.0,0.0004,2]
[340609193,1729530009724,172.175,0.00027962,2]
[340609194,1729530010335,587.971,0.00027962,2]
[340609195,1729530026997,14563.804,0.0004,2]
[340609196,1729530027321,541.081,0.00029498,2]
[340609197,1729530027464,2204.732,0.00029498,2]
[340609198,1729530126262,2132.54555705,0.00035,2]
[340609199,1729530131091,1981.0,0.0001726,15]
[340609200,1729530182279,1173.42910184,0.00035,2]
[340609201,1729530232386,2104.6276965,0.0001726,10]
[340609202,1729530309666,14025.48564461,0.0001726,2]
[340609203,1729530309695,25000.0,0.0001726,2]
[340609204,1729530309727,10974.51435539,0.0001726,2]
[340609217,1729530478188,169.95,0.00010959,2]
[340609251,1729530632825,-1044.999999,0.00033918,2]
[340609253,1729530632834,-150.0,0.00033918,2]
[340609255,1729530632844,-310.0,0.0003937,2]
[340609257,1729530632853,-150.02,0.00040952,2]
[340609259,1729530632862,-652.0,0.00040954,2]
[340609261,1729530632871,-2610.95,0.00041021,120]
[340609262,1729530632881,-210.51,0.00041021,2]
[340609263,1729530632891,-250.0,0.00041043,2]
[340609264,1729530632900,-762.79,0.00041051,2]
[340609265,1729530632912,-2832.34595728,0.00041061,2]
[340609266,1729530632923,-402.2181785,0.00041061,2]
[340609267,1729530632934,-1442.84281942,0.00041061,2]
[340609268,1729530632945,-2322.5930448,0.00041061,2]
[340609269,1729530632957,-194.04,0.00041062,2]
[340609270,1729530632965,-1160.95,0.00041068,2]
[340609271,1729530632975,-1000.0,0.00041072,2]
[340609272,1729530632984,-155.37,0.00041075,2]
[340609273,1729530632994,-250.0,0.00041088,2]
[340609274,1729530633003,-7186.92,0.00041088,2]
[340609275,1729530633013,-1893.68,0.00041088,2]
[340609276,1729530633022,-500.0,0.00041095,120]
[340609277,1729530633032,-500.0,0.00041164,2]
[340609278,1729530633041,-3289.73,0.00041204,30]
[340609279,1729530633051,-250.0,0.00041284,120]
[340609280,1729530633064,-174.96,0.0004135,120]
[340609281,1729530633074,-502.86345944,0.00041369,120]
[340609282,1729530633084,-157.0,0.00041376,2]
[340609283,1729530633095,-368.51,0.00041394,120]
[340609284,1729530633105,-178.8,0.00041593,2]
[340609285,1729530633115,-310.0,0.00041634,2]
[340609286,1729530633126,-150.0,0.00041658,2]
[340609287,1729530633136,-159.14,0.00041707,2]
[340609288,1729530633146,-5636.68,0.00041707,2]
[340609289,1729530633157,-884.67,0.00041707,2]
[340609290,1729530633167,-6533.15,0.00041707,2]
[340609291,1729530633177,-500.0,0.00041989,16]
[340609292,1729530633187,-538.68,0.00041989,120]
[340609293,1729530633197,-500.0,0.00041989,120]
[340609294,1729530633208,-500.0,0.00041989,120]
[340609295,1729530633219,-1586.37,0.00041989,120]
[340609296,1729530633229,-842.49,0.00041989,120]
[340609297,1729530633240,-500.0,0.00041989,120]
[340609298,1729530633250,-887.11,0.00041989,30]
[340609299,1729530633260,-500.0,0.00041989,120]
[340609300,1729530633270,-500.0,0.00041989,120]
[340609301,1729530633280,-500.0,0.00041989,120]
[340609302,1729530633290,-500.0,0.00041989,120]
[340609303,1729530633300,-500.0,0.00041989,120]
[340609304,1729530633314,-500.0,0.00041989,120]
[340609305,1729530633323,-500.0,0.00041989,120]
[340609306,1729530633333,-544.48240917,0.00041989,120]
[340609307,1729530633343,-500.0,0.00041989,120]
[340609308,1729530633352,-500.0,0.00041989,120]
[340609309,1729530633362,-500.0,0.00041989,120]
[340609310,1729530633371,-503.99422709,0.00041989,120]
[340609311,1729530633381,-500.0,0.00041989,120]
[340609312,1729530633391,-500.0,0.00041989,120]
[340609313,1729530633401,-504.35,0.00041989,120]
[340609314,1729530633410,-500.0,0.00041989,120]
[340609315,1729530633420,-375.0,0.00041999,2]
[340609316,1729530633430,-500.0,0.00042238,2]
[340609317,1729530633439,-500.0,0.00042263,16]
[340609318,1729530633448,-538.68,0.00042263,120]
[340609319,1729530633458,-500.0,0.00042263,120]
[340609320,1729530633468,-500.0,0.00042263,120]
[340609321,1729530633478,-1586.37,0.00042263,120]
[340609322,1729530633488,-842.49,0.00042263,120]
[340609323,1729530633498,-241.83,0.00042263,120]
[340609324,1729530633508,-500.0,0.00042263,120]
[340609325,1729530633518,-500.0,0.00042263,120]
[340609326,1729530633528,-500.0,0.00042263,120]
[340609327,1729530633538,-500.0,0.00042263,120]
[340609328,1729530633548,-500.0,0.00042537,16]
[340609329,1729530633561,-538.68,0.00042537,120]
[340609330,1729530633571,-500.0,0.00042537,120]
[340609331,1729530633582,-500.0,0.00042537,120]
[340609332,1729530633592,-1586.37,0.00042537,120]
[340609333,1729530633602,-842.49,0.00042537,120]
[340609334,1729530633612,-500.0,0.00042537,120]
[340609335,1729530633623,-184.54895882,0.00042537,120]
[340609336,1729530633633,-500.0,0.00042537,120]
[340609337,1729530633643,-500.0,0.00042537,120]
[340609338,1729530633653,-236.9900765,0.000427,2]
[340609339,1729530633666,-1263.0099235,0.000427,2]
[340609340,1729530633675,-282.93482164,0.00042785,2]
[340609341,1729530633691,-328.4348001,0.00042785,2]
[340609342,1729530633703,-1388.63037826,0.00042785,2]
[340609343,1729530633713,-538.68,0.00042811,120]
[340609344,1729530633724,-1586.37,0.00042811,120]
[340609345,1729530633734,-842.49,0.00042811,120]
[340609346,1729530633744,-306.02483296,0.00042811,120]
[340609347,1729530633754,-500.0,0.00042811,120]
[340609348,1729530633764,-500.0,0.00042811,120]
[340609349,1729530633774,-412.80478878,0.000429,2]
[340609350,1729530633786,-700.0,0.000429,2]
[340609351,1729530633799,-1577.68141122,0.000429,2]
[340609352,1729530633812,-547.6152,0.000429,2]
[340609353,1729530633831,-1622.1573,0.000429,2]
[340609354,1729530633842,-923.12749245,0.000429,15]
[340609355,1729530633854,-5205.64379001,0.000429,15]
[340609356,1729530633864,-167.0,0.00042958,2]
[340609357,1729530633874,-36.78080507,0.00042987,10]
[340609363,1729530638369,-500.0,0.00041989,120]
[340609364,1729530638378,-173.06,0.00042263,120]
[340609365,1729530638535,-326.94,0.00042263,120]
[340609366,1729530638545,-500.0,0.00042537,120]
[340609367,1729530638554,-221.89388107,0.00042811,120]
[340609390,1729530640275,-278.10611893,0.00042811,120]
[340609391,1729530640285,-1392.93981864,0.00042997,2]
[340609392,1729530640303,-4942.93127196,0.00042997,2]
[340609393,1729530640314,-12263.81372804,0.00043,120]
[340609394,1729530640395,-10046.7165887,0.00043,120]
[340609395,1729530640405,-1000.0,0.00043,120]
[340609396,1729530640415,-75000.0,0.00043,120]
[340609397,1729530640425,-5038.84822728,0.00043,2]
[340609398,1729530640435,-150.0,0.00043,120]
[340609399,1729530640444,-150.0,0.00043,120]
[340609400,1729530640453,-200.0,0.00043,120]
[340609401,1729530640462,-150.0,0.00043,120]
[340609402,1729530640472,-150.0,0.00043,120]
[340609403,1729530640481,-200.0,0.00043,120]
[340609404,1729530640491,-150.0,0.00043,120]
[340609405,1729530640500,-150.0,0.00043,120]
[340609406,1729530640509,-200.0,0.00043,120]
[340609407,1729530640518,-185.96,0.00043014,120]
[340609408,1729530640528,-737.2855469,0.00043026,2]
[340609409,1729530640537,-865.8095425,0.00043026,2]
[340609410,1729530640547,-6607.9565462,0.00043055,2]
[340609411,1729530640556,-1975.8917224,0.00043055,2]
[340609412,1729530640569,-1586.37,0.00043085,120]
[340609415,1729530640580,-842.49,0.00043085,120]
[340609416,1729530640589,-500.0,0.00043085,120]
[340609418,1729530640599,-500.0,0.00043085,120]
[340609420,1729530640608,-500.0,0.00043085,120]
[340609422,1729530640618,-684.90425,0.00043088,30]
[340609424,1729530640628,-150.0,0.000431,120]
[340609426,1729530640639,-380.39298304,0.000432,30]
[340609428,1729530640649,-1600.36683688,0.000432,60]
[340609430,1729530640659,-5153.57182846,0.00043234,36]
[340609432,1729530640668,-500.0,0.00043234,60]
[340609434,1729530640678,-500.0,0.00043234,60]
[340609436,1729530640688,-500.0,0.00043234,60]
[340609438,1729530640697,-684.90425,0.00043288,30]
[340609440,1729530640707,-1586.37,0.00043359,120]
[340609442,1729530640716,-842.49,0.00043359,120]
[340609444,1729530640725,-500.0,0.00043359,120]
[340609446,1729530640734,-500.0,0.00043359,120]
[340609448,1729530640743,-500.0,0.00043359,120]
[340609450,1729530640753,-150.0,0.00043383,120]
[340609452,1729530640762,-684.90425,0.00043488,30]
[340609454,1729530640772,-161.58294546,0.00043499,31]
[340609456,1729530640781,-500.0,0.00043499,120]
[340609458,1729530640791,-502.80718119,0.00043499,120]
[340609460,1729530640800,-500.0,0.00043499,120]
[340609462,1729530640811,-511.86268314,0.00043499,120]
[340609464,1729530640821,-500.0,0.00043499,120]
[340609466,1729530640831,-500.0,0.00043499,120]
[340609468,1729530640840,-349.06767448,0.00043499,120]
[340609470,1729530640850,-500.0,0.00043499,120]
[340609472,1729530640859,-500.0,0.00043499,120]
[340609474,1729530640869,-627.18553144,0.00043499,120]
[340609476,1729530640878,-456.75,0.00043499,120]
[340609478,1729530640888,-500.0,0.00043499,120]
[340609480,1729530640897,-500.0,0.00043499,120]
[340609482,1729530640907,-500.0,0.00043499,120]
[340609484,1729530640920,-500.0,0.00043499,120]
[340609486,1729530640929,-500.0,0.00043499,120]
[340609488,1729530640938,-500.0,0.00043499,120]
[340609490,1729530640948,-500.0,0.00043499,120]
[340609492,1729530640959,-510.34798454,0.00043499,120]
[340609494,1729530640968,-500.0,0.00043499,120]
[340609496,1729530640977,-255.87917893,0.00043499,120]
[340609498,1729530640987,-500.0,0.00043499,120]
[340609500,1729530640996,-500.0,0.00043499,120]
[340609502,1729530641005,-644.96925465,0.00043499,120]
[340609504,1729530641015,-500.0,0.00043499,120]
[340609505,1729530641024,-500.0,0.00043499,120]
[340609507,1729530641034,-500.0,0.00043499,120]
[340609509,1729530641044,-513.01178795,0.00043499,120]
[340609511,1729530641053,-610.95944922,0.00043499,120]
[340609513,1729530641064,-500.0,0.00043499,120]
[340609515,1729530641073,-500.0,0.00043499,120]
[340609517,1729530641083,-500.0,0.00043499,120]
[340609519,1729530641092,-500.0,0.00043499,120]
[340609521,1729530641102,-562.74706675,0.00043499,120]
[340609523,1729530641112,-500.0,0.00043499,120]
[340609525,1729530641121,-500.0,0.00043499,120]
[340609527,1729530641131,-500.0,0.00043499,120]
[340609529,1729530641141,-75000.0,0.000435,120]
[340609531,1729530641151,-1569.59739333,0.00043623,9]
[340609534,1729530641161,-1586.37,0.00043633,120]
[340609535,1729530641172,-842.49,0.00043633,120]
[340609537,1729530641182,-495.77649531,0.00043633,120]
[340609539,1729530641191,-500.0,0.00043633,120]
[340609541,1729530641201,-500.0,0.00043633,120]
[340609543,1729530641210,-6128.7712824,0.00043678,15]
[340609545,1729530641220,-684.90425,0.00043688,30]
[340609547,1729530641230,-1569.59739333,0.0004369,9]
[340609549,1729530641239,-1173.10452387,0.000437,120]
[340609551,1729530641249,-204.0,0.0004372,30]
[340609553,1729530641258,-500.0,0.00043773,120]
[340609555,1729530641268,-500.0,0.00043773,120]
[340609558,1729530641278,-500.0,0.00043773,120]
[340609560,1729530641287,-500.0,0.00043773,120]
[340609561,1729530641297,-530.45929559,0.00043773,120]
[340609562,1729530641306,-500.0,0.00043773,120]
[340609563,1729530641316,-500.0,0.00043773,120]
[340609564,1729530641325,-500.0,0.00043773,120]
[340609565,1729530641334,-500.0,0.00043773,120]
[340609566,1729530641343,-500.0,0.00043773,120]
[340609567,1729530641352,-188.70308022,0.00043773,120]
[340609568,1729530641361,-500.0,0.00043773,120]
[340609569,1729530641371,-150.0,0.00043778,120]
[340609570,1729530641380,-500.0,0.00043782,60]
[340609571,1729530641390,-309.79980977,0.000438,120]
[340609572,1729530641401,-467.67587398,0.000438,30]
[340609573,1729530641411,-151.0,0.00043808,120]
[340609574,1729530641420,-1569.59739333,0.00043825,9]
[340609575,1729530641430,-500.0,0.00043835,120]
[340609576,1729530641439,-500.0,0.00043835,120]
[340609577,1729530641449,-924.0,0.00043847,30]
[340609578,1729530641459,-156.69190014,0.00043887,28]
[340609579,1729530641469,-1569.59739333,0.00043887,9]
[340609580,1729530641479,-166.2027,0.00043888,30]
[340609581,1729530641489,-836.78683844,0.00043888,16]
[340609582,1729530641499,-1569.59739333,0.00043897,9]
[340609583,1729530641509,-310.0,0.00043898,2]
[340609584,1729530641519,-160.50420835,0.000439,13]
[340609585,1729530641528,-214.65479573,0.000439,20]
[340609586,1729530641538,-1586.37,0.00043907,120]
[340609587,1729530641548,-842.49,0.00043907,120]
[340609588,1729530641557,-500.0,0.00043907,120]
[340609589,1729530641568,-500.0,0.00043907,120]
[340609590,1729530641577,-1569.59739333,0.0004395,9]
[340609591,1729530641587,-5618.5203861,0.0004397,2]
[340609592,1729530641597,-5854.6513898,0.0004397,2]
[340609593,1729530641607,-1750.6406312,0.0004397,2]
[340609595,1729530641617,-653.2352054,0.0004397,2]
[340609597,1729530641626,-29822.3504733,0.0004397,9]
[340609599,1729530641636,-500.0,0.00043973,10]
[340609601,1729530641645,-368.51,0.00043978,120]
[340609603,1729530641655,-3139.19478666,0.00043978,9]
[340609605,1729530641665,-5674.30917522,0.0004398,9]
[340609607,1729530641676,-151.48,0.0004398,2]
[340609609,1729530641685,-73289.0,0.00043988,120]
[340609611,1729530641695,-544.0,0.00043989,7]
[340609613,1729530641705,-28371.5458761,0.0004399,9]
[340609615,1729530641714,-1408.70721582,0.0004399,10]
[340609617,1729530641723,-42000.51418156,0.0004399,7]
[340609619,1729530641733,-82277.4830407,0.0004399,9]
[340609621,1729530641742,-151.48,0.0004399,2]
[340609623,1729530641752,-151.48,0.0004399,2]
[340609625,1729530641762,-151.48,0.0004399,2]
[340609627,1729530641772,-151.48,0.0004399,2]
[340609629,1729530641781,-151.48,0.0004399,2]
[340609631,1729530641791,-348.69435996,0.00043999,31]
[340609633,1729530641800,-1500.0,0.00043999,120]
[340609635,1729530641811,-1263.37886558,0.00043999,120]
[340609637,1729530641821,-2346.56,0.00043999,120]
[340609639,1729530641831,-50000.0,0.00044,34]
[340609641,1729530641843,-50000.0,0.00044,44]
[340609643,1729530641853,-50000.0,0.00044,54]
[340609645,1729530641863,-75000.0,0.00044,120]
[340609647,1729530641874,-5000.0,0.00044,7]
[340609649,1729530641883,-348.16801822,0.00044,120]
[340609650,1729530641892,-997.06358247,0.00044,120]
[340609652,1729530641901,-500.0,0.00044,120]
[340609654,1729530641917,-3066.63003571,0.00044,120]
[340609656,1729530641931,-1476.29911337,0.00044,120]
[340609659,1729530641943,-1345.70993128,0.00044,120]
[340609821,1729530643513,-216.21,0.0004399,10]
[340609822,1729530643522,-4795.14404856,0.00044,120]
[340609823,1729530643537,-4172.42100406,0.00044,120]
[340609848,1729530643853,-26812.6652291,0.00044,120]
[340610099,1729530646271,-10929.20831058,0.00044,120]
[340610117,1729530646435,-313.0,0.00044,7]
[340610119,1729530646445,-22401.92232734,0.00044,120]
[340610121,1729530646455,-769927.40500363,0.00044,120]
[340610126,1729530646492,-1717.94533191,0.00044,120]
[340612446,1729530820597,193.65,0.000249,2]
[340612447,1729530879295,-258.08850404,0.00028,2]
[340612448,1729530879320,-800.0,0.00028,2]
[340612449,1729530883727,-150.0,0.00030976,7]
[340612450,1729530897417,12130.6395225,0.0004,120]
[340612451,1729530906305,-500.0,0.00041989,120]
[340612452,1729530906330,-920.75,0.00041991,2]
[340612453,1729530906354,-250.0,0.00042014,2]
[340612454,1729530906378,-2751.0,0.00042244,120]
[340612455,1729530906401,-500.0,0.00042263,120]
[340612456,1729530906431,-2059.82,0.00042295,2]
[340612457,1729530906459,-6708.54,0.00042419,2]
[340612458,1729530906485,-8236.9,0.00042419,2]
[340612459,1729530906513,-3072.99,0.00042419,30]
[340612460,1729530912452,180.404,0.00029896,2]
[340612461,1729530916379,4880.012,0.00029896,2]
[340612462,1729531211251,5305.531,0.00029896,2]
[340612463,1729531224410,150.0,0.00029896,2]
[340612464,1729531228275,250.0,0.0001,2]
[340612465,1729531229392,300.0,0.00012,2]
[340612466,1729531321719,-11215.1,0.00041502,60]
[340612467,1729531321744,-353.47,0.00041572,120]
[340612468,1729531321768,-536.011,0.00042419,64]
[340612469,1729531321795,-22186.5,0.00042419,30]
[340612470,1729531321820,-331.65,0.00042419,120]
[340612471,1729531321845,-250.0,0.00042651,120]
[340612472,1729531321869,-150.99,0.00042651,30]
[340612473,1729531321895,-8096.42114312,0.00042797,15]
[340612474,1729531321920,-781.00104908,0.000428,15]
[340612475,1729531321944,-4064.0,0.00042826,117]
[340612476,1729531321968,-180.17,0.0004288,10]
[340612477,1729531321993,-150.14,0.0004288,10]
[340612478,1729531322017,-750.75,0.0004288,10]
[340612479,1729531322041,-715.77246939,0.00042889,120]
[340612480,1729531322069,-50238.02433841,0.0004289,9]
[340612481,1729531416593,177.0,6.301e-05,2]
[340612482,1729531477663,183.0,6.301e-05,2]
[340612483,1729531508523,18634.469,0.00011,2]
[340612484,1729531508552,25000.0,0.00011,2]
[340612485,1729531508580,25000.0,0.00011,2]
[340612486,1729531508608,25000.0,0.00011,2]
[340612487,1729531508636,25000.0,0.00011,2]
[340612488,1729531508666,25000.0,0.00011,2]
[340612489,1729531508695,150000.0,0.00011,2]
[340612490,1729531508759,1100000.0,0.00011,2]
[340612491,1729531508794,450000.0,0.00011,2]
[340612504,1729531652720,-244.08605197,0.00010999,2]
[340612505,1729531652745,-318.45938104,0.00010999,2]
[340612506,1729531652772,-49437.45456699,0.00011,2]
[340612507,1729531654129,-50000.0,0.00011,2]
[340612509,1729531655040,-50000.0,0.00011,2]
[340612510,1729531655855,-50000.0,0.00011,2]
[340612511,1729531656739,-50000.0,0.00011,2]
[340612512,1729531657595,-50000.0,0.00011,2]
[340612513,1729531658658,-50000.0,0.00011,2]
[340612514,1729531659397,-50000.0,0.00011,2]
[340612515,1729531660380,-50000.0,0.00011,2]
[340612516,1729531661297,-50000.0,0.00011,2]
[340612518,1729531693008,-20000.0,0.00011,2]
[340612519,1729531694710,-20000.0,0.00011,2]
[340612520,1729531695780,-20000.0,0.00011,2]
[340612521,1729531696893,-20000.0,0.00011,2]
[340612522,1729531699257,-20000.0,0.00011,2]
[340612523,1729531709845,-150000.0,0.00011,2]
[340612524,1729531728647,-20000.0,0.00011,2]
[340612526,1729531741870,-300.0,0.00010999,2]
[340612527,1729531741896,-4700.0,0.00011,2]
[340612535,1729531774572,-158.43,0.00010959,2]
[340612536,1729531774600,-19841.57,0.00011,2]
[340612537,1729531775628,-20000.0,0.00011,2]
[340612538,1729531776747,-20000.0,0.00011,2]
[340612558,1729531831490,-150.0,0.00010999,2]
[340612559,1729531831500,-300.0,0.00010999,2]
[340612560,1729531831510,-368.82444517,0.00011,2]
[340612561,1729531831522,-867.99467088,0.00011,2]
[340612562,1729531831534,-20924.53590503,0.00011,2]
[340612563,1729531831545,-947.8638113,0.00011,2]
[340612564,1729531831557,-1366.00042613,0.00011,2]
[340612565,1729531831568,-665.95,0.00011,2]
[340612566,1729531831579,-509.22801043,0.00011,2]
[340612567,1729531831590,-664.83905779,0.00011,2]
[340612568,1729531831605,-11870.10370373,0.00011,2]
[340612569,1729531831616,-4390.21581886,0.00011,2]
[340612570,1729531831649,-711.6,0.00011,2]
[340612571,1729531831661,-17804.33994674,0.00011,2]
[340612572,1729531831672,-1571.8,0.00011,2]
[340612573,1729531831684,-1742.59804318,0.00011,2]
[340612574,1729531831721,-500.0,0.00011,2]
[340612575,1729531831733,-827.5,0.00011,2]
[340612576,1729531831744,-679.71,0.00011,2]
[340612577,1729531837547,-3262.54920697,0.00011,2]
[340612578,1729531837560,-1152.06794487,0.00011,2]
[340612579,1729531837572,-1720.75393469,0.00011,2]
[340612580,1729531837583,-33810.0264,0.00011,2]
[340612581,1729531837606,-1414.66430187,0.00011,2]
[340612582,1729531837667,-4498.0,0.00011,2]
[340612583,1729531837727,-562.98582958,0.00011,2]
[340612584,1729531837739,-794.86802,0.00011,2]
[340612585,1729531837751,-7438.13842549,0.00011,2]
[340612586,1729531837762,-1233.64916876,0.00011,2]
[340612587,1729531837773,-30793.44898451,0.00011,2]
[340612588,1729531837844,-327574.55259631,0.00011,2]
[340612589,1729531837854,-150.0,0.00011,2]
[340612590,1729531837865,-255.0,0.00012044,2]
[340612591,1729531837875,-291.0,0.00013188,2]
[340612592,1729531837885,-1555.0,0.000226,2]
[340612593,1729531837895,-7286.77902879,0.0002475,2]
[340612594,1729531837905,-36108.49321382,0.0002495,2]
[340612595,1729531837915,-999.99,0.0002495,2]
[340612596,1729531837924,-7303.93235045,0.0002495,2]
[340612597,1729531837934,-229.23,0.00025,2]
[340612598,1729531837943,-7286.77902877,0.0002755,2]
[340612599,1729531837952,-931.880922,0.0002759,2]